bitfinex-derivatives/quotes_SOLF0:USTF0_20240923
["timestamp","ask_amount","ask_price","bid_price","bid_amount"]
[1727125856254,2.8205,143.86,143.83,13.116]
[1727125859551,2.8205,143.86,143.83,9.64]
[1727125863242,2.8205,143.86,143.82,9.64]
[1727125863448,12.4605,143.86,143.82,9.64]
[1727125864850,12.4605,143.86,143.82,13.1163]
[1727125870858,2.8205,143.86,143.82,3.4763]
[1727125871057,12.4605,143.86,143.82,13.1163]
[1727125872062,2.8205,143.86,143.82,13.1163]
[1727125873263,2.8205,143.86,143.82,9.64]
[1727125874068,2.8205,143.86,143.83,9.64]
[1727125876963,2.8205,143.86,143.83,13.1161]
[1727125880561,2.8205,143.86,143.83,3.4761]
[1727125880762,2.8205,143.86,143.83,13.1161]
[1727125888466,2.8205,143.86,143.83,9.64]
[1727125897781,9.64,143.84,143.72,6.9572]
[1727125897983,9.64,143.84,143.65,237.26130797]
[1727125897984,9.64,143.8,143.74,9.64]
[1727125898184,102.26932967,143.83,143.67,3.49760033]
[1727125898380,9.64,143.77,143.72,3.4786]
[1727125898586,9.64,143.77,143.72,9.64]
[1727125898779,105.71998001,143.83,143.75,9.64]
[1727125898979,9.64,143.8,143.75,9.64]
[1727125900582,9.64,143.8,143.75,13.118]
[1727125906788,105.71998001,143.83,143.76,3.4778]
[1727125907092,9.64,143.8,143.76,9.64]
[1727125907490,105.71998001,143.83,143.76,9.64]
[1727125907696,9.64,143.81,143.76,9.64]
[1727125908189,2.8205,143.86,143.79,9.64]
[1727125908381,9.64,143.85,143.79,9.64]
[1727125908585,9.64,143.85,143.8,3.4766]
[1727125909490,9.64,143.85,143.79,9.64]
[1727125909491,9.64,143.85,143.81,3.4766]
[1727125909696,9.64,143.85,143.81,13.1166]
[1727125910296,9.64,143.85,143.8,3.4767]
[1727125911598,9.64,143.85,143.81,3.4766]
[1727125911788,9.64,143.85,143.81,9.64]
[1727125912096,9.64,143.86,143.82,9.64]
[1727125912288,9.64,143.86,143.83,3.476]
[1727125912689,9.64,143.86,143.82,13.1162]
[1727125913997,4.96240356,143.89,143.82,13.1162]
[1727125914198,9.64,143.87,143.82,13.1162]
[1727125917998,9.64,143.86,143.82,13.1162]
[1727125920191,9.64,143.86,143.82,9.64]
[1727125920394,9.64,143.85,143.77,3.46386725]
[1727125920592,9.64,143.84,143.79,9.64]
[1727125921396,2.7745,143.88,143.8,13.1167]
[1727125921696,9.64,143.85,143.8,9.64]
[1727125922898,9.64,143.85,143.81,3.4766]
[1727125923403,9.64,143.85,143.81,13.1166]
[1727125925601,14.60240356,143.89,143.84,9.64]
[1727125925996,14.60240356,143.89,143.84,13.1157]
[1727125928608,9.64,143.87,143.84,13.1157]
[1727125928807,2.8165,143.95,143.85,3.4756]
[1727125929101,9.64,143.89,143.85,3.4756]
[1727125930411,13.16204757,143.9,143.86,3.4753]
[1727125930704,9.64,143.9,143.86,3.4753]
[1727125931100,13.07661297,143.9,143.86,3.4753]
[1727125931902,9.64,143.88,143.85,3.4756]
[1727125935205,9.64,143.89,143.85,3.4756]
[1727125937907,3.43661297,143.9,143.85,3.4756]
[1727125938109,9.64,143.89,143.85,3.4756]
[1727125939314,9.64,143.87,143.82,9.64]
[1727125940812,9.64,143.87,143.83,3.4759]
[1727125941812,9.64,143.88,143.83,13.1159]
[1727125943311,9.64,143.88,143.83,3.4759]
[1727125943510,9.64,143.88,143.83,13.1159]
[1727125944210,9.64,143.85,143.79,60.5395143]
[1727125944510,9.64,143.85,143.8,9.64]
[1727125944910,9.64,143.85,143.81,3.4764]
[1727125945517,9.64,143.85,143.8,13.1166]
[1727125947318,4.3314,143.89,143.79,73.6565143]
[1727125947319,9.64,143.83,143.79,73.6565143]
[1727125948912,9.64,143.83,143.79,70.1795143]
[1727125949113,9.64,143.81,143.79,60.5395143]
[1727125950619,9.64,143.81,143.77,3.4775]
[1727125953316,9.64,143.81,143.77,13.1175]
[1727125955418,9.64,143.81,143.78,3.4773]
[1727125957221,4.3314,143.89,143.79,9.64]
[1727125957423,9.64,143.84,143.79,9.64]
[1727125957821,9.64,143.84,143.8,3.4767]
[1727125961226,9.64,143.83,143.79,3.477]
[1727125961540,11.0233,143.83,143.79,3.477]
[1727125963426,9.64,143.8,143.72,4.76014794]
[1727125963626,9.64,143.77,143.67,11.34649872]
[1727125963824,9.64,143.76,143.71,9.64]
[1727125964135,9.64,143.76,143.71,13.1189]
[1727125964626,9.64,143.74,143.71,3.4789]
[1727125965418,9.64,143.74,143.7,9.64]
[1727125965621,9.64,143.73,143.68,9.64]
[1727125965826,9.64,143.72,143.67,9.64]
[1727125966925,9.64,143.72,143.68,3.4797]
[1727125969126,9.64,143.72,143.69,3.4794]
[1727125975938,9.64,143.72,143.7,3.4792]
[1727125976347,6.34116081,143.82,143.73,3.4785]
[1727125976840,9.64,143.76,143.73,3.4785]
[1727125978435,6.34116081,143.82,143.66,60.59417355]
[1727125978436,9.64,143.79,143.74,9.64]
[1727125979752,9.64,143.79,143.76,3.4777]
[1727125980945,9.64,143.8,143.75,9.64]
[1727125981347,9.64,143.8,143.77,3.4773]
[1727125982950,9.64,143.79,143.77,3.4773]
[1727125983258,9.64,143.79,143.76,3.4777]
[1727125993464,9.64,143.79,143.74,9.64]
[1727125993465,2.9044,143.82,143.77,9.64]
[1727125993666,12.5444,143.82,143.77,9.64]
[1727125994066,12.5444,143.82,143.78,3.4772]
[1727125998664,12.5444,143.82,143.79,3.477]
[1727125999875,9.64,143.81,143.79,3.477]
[1727126025303,1.4406,143.82,143.78,3.4772]
[1727126025503,9.64,143.8,143.78,3.4772]
[1727126026395,13.87036134,143.91,143.78,9.64]
[1727126026396,3.55482121,143.84,143.78,9.64]
[1727126026601,9.64,143.84,143.73,11.36501771]
[1727126026795,13.08593981,143.84,143.79,9.64]
[1727126027795,9.64,143.83,143.8,3.4767]
[1727126032398,9.64,143.85,143.82,3.4763]
[1727126035703,9.64,143.84,143.81,3.4765]
[1727126035901,17.27750142,143.92,143.81,9.64]
[1727126035902,3.41252173,143.92,143.81,9.64]
[1727126036201,9.64,143.86,143.81,9.64]
[1727126036793,9.64,143.86,143.83,3.4761]
[1727126039302,9.64,143.85,143.81,9.64]
[1727126039706,9.64,143.85,143.82,3.4762]
[1727126040307,9.64,143.84,143.79,9.64]
[1727126041401,9.64,143.84,143.8,3.4767]
[1727126042203,9.64,143.85,143.81,3.4766]
[1727126048810,17.3288264,143.92,143.82,3.4763]
[1727126049012,17.3288264,143.92,143.8,9.64]
[1727126049306,9.64,143.85,143.8,9.64]
[1727126049609,9.64,143.85,143.81,3.4764]
[1727126055408,9.64,143.82,143.67,14.31306585]
[1727126055609,9.64,143.77,143.68,11.38899775]
[1727126055813,9.64,143.76,143.69,11.38899775]
[1727126056010,9.64,143.75,143.7,4.77987088]
[1727126056216,9.64,143.75,143.69,9.64]
[1727126056719,9.64,143.73,143.69,13.1194]
[1727126056916,102.29300805,143.8,143.69,9.64]
[1727126057122,9.64,143.75,143.7,3.4792]
[1727126059623,9.64,143.75,143.69,13.1194]
[1727126060618,9.64,143.74,143.69,13.1194]
[1727126069319,9.64,143.74,143.69,9.64]
[1727126069627,1.441,143.79,143.66,60.59417355]
[1727126069628,9.64,143.71,143.66,60.59417355]
[1727126069924,9.64,143.7,143.66,60.59417355]
[1727126070423,13.1194,143.7,143.66,60.59417355]
[1727126071630,3.4792,143.71,143.66,64.07437355]
[1727126071825,1.3892,143.72,143.66,70.23417355]
[1727126072021,11.0292,143.72,143.66,70.23417355]
[1727126072327,14.508,143.72,143.67,3.4798]
[1727126076918,14.508,143.72,143.66,70.23417355]
[1727126076919,9.64,143.7,143.66,73.71427355]
[1727126077124,9.64,143.7,143.66,64.07427355]
[1727126078833,13.1193,143.7,143.66,64.07427355]
[1727126079432,9.64,143.69,143.66,64.07427355]
[1727126081529,13.1199,143.68,143.57,313.52]
[1727126081731,13.1199,143.68,143.62,9.64]
[1727126081929,13.1199,143.68,143.63,3.53804877]
[1727126082126,9.64,143.68,143.64,3.4805]
[1727126083131,9.64,143.68,143.63,9.64]
[1727126083433,13.1199,143.68,143.63,9.64]
[1727126083634,13.1199,143.68,143.63,13.1702876]
[1727126084931,13.1199,143.68,143.64,3.4806]
[1727126085438,13.1199,143.68,143.63,13.1209]
[1727126087140,13.1199,143.68,143.64,3.4807]
[1727126093642,1.3729,143.72,143.67,9.64]
[1727126093840,1.3729,143.72,143.68,9.64]
[1727126094141,1.3729,143.72,143.69,3.4794]
[1727126094736,1.3729,143.72,143.7,3.4791]
[1727126095445,1.3729,143.72,143.69,3.4794]
[1727126100145,11.0129,143.72,143.68,3.4796]
[1727126101547,1.3729,143.72,143.69,9.64]
[1727126101748,9.64,143.74,143.69,9.64]
[1727126102344,9.64,143.74,143.7,13.1191]
[1727126104048,9.64,143.71,143.61,60.61454554]
[1727126104244,9.64,143.68,143.63,9.64]
[1727126104553,9.64,143.68,143.63,13.08403038]
[1727126104946,2.7837,143.72,143.63,13.08403038]
[1727126105148,9.64,143.69,143.63,13.08403038]
[1727126105342,9.64,143.69,143.66,3.4802]
[1727126107251,9.64,143.69,143.65,3.4803]
[1727126107656,9.64,143.69,143.66,3.4802]
[1727126111056,9.64,143.67,143.61,60.61454554]
[1727126111257,2.7837,143.72,143.61,60.61454554]
[1727126111258,9.64,143.65,143.61,60.61454554]
[1727126111843,9.64,143.65,143.62,3.4811]
[1727126112557,12.3559,143.67,143.62,9.64]
[1727126112946,12.3559,143.67,143.64,3.4805]
[1727126115652,12.3559,143.67,143.65,3.4804]
[1727126116159,10.9805,143.67,143.65,3.4804]
[1727126124258,9.64,143.66,143.64,3.4805]
[1727126125163,9.64,143.66,143.63,3.4808]
[1727126125657,4.8206,143.67,143.59,3.4818]
[1727126125658,9.64,143.64,143.59,3.4818]
[1727126125860,1.3481,143.65,143.55,9.64]
[1727126126060,9.64,143.61,143.57,9.64]
[1727126126258,9.64,143.61,143.59,3.4817]
[1727126127363,9.64,143.6,143.56,9.64]
[1727126127563,9.64,143.6,143.56,16.25777879]
[1727126127766,9.64,143.6,143.58,3.482]
[1727126128464,9.64,143.61,143.59,3.4819]
[1727126128665,2.7535,143.62,143.58,9.64]
[1727126128964,2.7535,143.62,143.61,3.4814]
[1727126134673,9.64,143.64,143.62,3.4811]
[1727126134873,10.9881,143.65,143.62,3.4811]
[1727126137067,2.8091,143.66,143.61,9.64]
[1727126137466,2.8091,143.66,143.65,3.4805]
[1727126138169,1.3888,143.66,143.65,3.4805]
[1727126138372,3.4793,143.7,143.66,3.48]
[1727126138568,9.64,143.69,143.66,3.48]
[1727126141076,9.64,143.68,143.66,3.48]
[1727126145473,13.1195,143.69,143.66,3.48]
[1727126150187,9.64,143.67,143.59,11.38800181]
[1727126150482,9.64,143.67,143.51,90.519]
[1727126150483,9.64,143.64,143.58,13.16938654]
[1727126150678,9.64,143.64,143.58,9.64]
[1727126151179,9.64,143.64,143.58,13.05099749]
[1727126152178,9.64,143.64,143.58,3.41099749]
[1727126152384,9.64,143.64,143.58,9.64]
[1727126152583,9.64,143.64,143.58,13.12390902]
[1727126152783,9.64,143.64,143.61,3.4813]
[1727126153281,9.64,143.64,143.61,3.4814]
[1727126154074,12.3803,143.66,143.61,9.64]
[1727126155183,12.3803,143.66,143.63,3.4808]
[1727126158184,12.3803,143.66,143.64,3.4807]
[1727126159488,2.7403,143.66,143.64,3.4807]
[1727126159788,12.3803,143.66,143.64,3.4807]
[1727126161085,3.4796,143.69,143.63,9.64]
[1727126161291,13.1196,143.69,143.63,9.64]
[1727126162089,13.1196,143.69,143.66,3.4802]
[1727126163189,15.9052,143.71,143.68,3.4797]
[1727126168481,9.64,143.69,143.58,10.44820902]
[1727126168682,9.64,143.66,143.62,9.64]
[1727126168984,9.64,143.66,143.61,60.61568361]
[1727126169191,9.64,143.67,143.65,3.4803]
[1727126170391,9.64,143.67,143.64,3.4806]
[1727126170584,9.64,143.66,143.64,3.4806]
[1727126173789,9.64,143.67,143.64,3.4806]
[1727126175190,9.64,143.7,143.65,9.64]
[1727126175687,13.1195,143.69,143.65,3.4804]
[1727126177584,13.1195,143.69,143.66,3.4802]
[1727126185606,9.64,143.67,143.65,3.4803]
[1727126186500,13.12,143.67,143.64,3.4806]
[1727126187197,9.64,143.65,143.61,60.61568361]
[1727126188104,9.64,143.65,143.62,3.481]
[1727126190607,3.4801,143.67,143.63,3.4809]
[1727126190908,9.64,143.66,143.63,3.4809]
[1727126191097,3.4801,143.67,143.63,3.4809]
[1727126191304,9.64,143.66,143.63,3.4809]
[1727126194716,9.64,143.65,143.62,3.4811]
[1727126194906,9.64,143.64,143.61,60.61568361]
[1727126195611,9.64,143.64,143.61,64.09698361]
[1727126196505,3.4805,143.65,143.61,64.09698361]
[1727126196712,4.2361,143.66,143.62,3.4812]
[1727126196713,7.7164,143.66,143.62,3.4812]
[1727126196908,9.64,143.65,143.62,3.4812]
[1727126204514,9.64,143.65,143.6,9.64]
[1727126204515,13.1205,143.65,143.61,3.4813]
[1727126205219,9.64,143.62,143.59,3.4818]
[1727126209219,9.64,143.62,143.5,10.4524]
[1727126209421,9.64,143.6,143.55,9.64]
[1727126209727,9.64,143.6,143.56,4.80559617]
[1727126210028,9.64,143.6,143.55,9.64]
[1727126210325,9.64,143.6,143.56,3.4825]
[1727126211121,9.64,143.6,143.57,3.4824]
[1727126217033,3.4813,143.62,143.58,3.482]
[1727126217236,9.64,143.61,143.58,3.482]
[1727126217739,3.481,143.63,143.59,3.4818]
[1727126218042,9.64,143.62,143.59,3.4818]
[1727126218740,3.4808,143.64,143.58,9.64]
[1727126218934,13.1208,143.64,143.58,9.64]
[1727126219138,9.64,143.62,143.57,9.64]
[1727126219539,9.64,143.62,143.59,3.4818]
[1727126220643,9.64,143.61,143.59,3.4818]
[1727126223138,9.64,143.61,143.58,3.482]
[1727126235341,9.64,143.6,143.57,3.4823]
[1727126235548,3.4815,143.61,143.42,58.5936118]
[1727126235549,105.95028155,143.65,143.56,9.64]
[1727126235751,9.64,143.61,143.56,9.64]
[1727126236057,9.64,143.61,143.58,3.4821]
[1727126240352,9.64,143.61,143.57,3.4823]
[1727126245661,3.4811,143.63,143.57,9.64]
[1727126245849,9.64,143.62,143.57,9.64]
[1727126246252,9.64,143.62,143.58,3.482]
[1727126247758,9.64,143.62,143.59,3.4819]
[1727126247958,3.4811,143.63,143.59,3.4819]
[1727126248160,9.64,143.64,143.59,9.64]
[1727126249354,9.64,143.64,143.61,3.4814]
[1727126252169,9.64,143.64,143.62,3.4812]
[1727126255571,105.87179571,143.65,143.63,3.4809]
[1727126255572,9.64,143.65,143.63,3.4809]
[1727126257667,13.1206,143.65,143.62,3.4811]
[1727126258064,9.64,143.64,143.62,3.4811]
[1727126261275,13.1207,143.64,143.62,3.4811]
[1727126264175,13.1207,143.64,143.6,3.4815]
[1727126264176,3.4811,143.63,143.6,3.4815]
[1727126264472,9.64,143.63,143.6,3.4815]
[1727126265870,3.4813,143.62,143.6,3.4815]
[1727126266675,3.4813,143.62,143.59,3.4818]
[1727126270779,9.64,143.6,143.54,3.483]
[1727126270980,1.4235,143.61,143.55,21.10149021]
[1727126271283,11.0635,143.61,143.56,11.46149021]
[1727126271589,14.5451,143.61,143.57,8.29212858]
[1727126271775,14.5451,143.61,143.57,3.4824]
[1727126273484,13.1217,143.6,143.57,3.4824]
[1727126273782,13.1217,143.6,143.56,3.4825]
[1727126275685,9.64,143.57,143.52,9.64]
[1727126275877,2.7845,143.6,143.53,11.47059172]
[1727126276180,2.7845,143.6,143.51,60.65427184]
[1727126276181,9.64,143.59,143.54,21.11059172]
[1727126276378,9.64,143.59,143.55,4.81378876]
[1727126276577,9.64,143.59,143.54,9.64]
[1727126276778,9.64,143.59,143.55,4.81314168]
[1727126276980,9.64,143.59,143.54,9.64]
[1727126277182,9.64,143.59,143.55,4.81309021]
[1727126277482,10.71,143.59,143.54,10.71]
[1727126277691,10.71,143.59,143.55,4.81252838]
[1727126277886,14.192,143.59,143.55,3.4828]
[1727126278185,27.4491,143.55,143.29,8.22194946]
[1727126278390,10.71,143.3,143.01,19.93889208]
[1727126278684,10.71,143.15,143.02,1.28171537]
[1727126278886,5.55456484,143.29,143.02,1.28171537]
[1727126279087,6.967,143.5,142.9,60.8409322]
[1727126279088,89.15020715,143.28,142.9,60.8409322]
[1727126279294,83.6,143.27,142.94,20.9]
[1727126279645,12.86276927,143.26,143.0,487.41783234]
[1727126279797,12.86276927,143.26,143.01,82.16604555]
[1727126279798,10.71,143.09,143.01,82.16604555]
[1727126280083,58.20076602,143.08,143.0,466.6510372]
[1727126280288,23.02544001,143.07,143.01,3.4959]
[1727126280474,23.02544001,143.06,143.0,455.9410372]
[1727126280679,19.53039344,143.05,143.0,455.9410372]
[1727126280876,23.34790899,143.04,143.0,455.9410372]
[1727126281083,25.1457286,143.03,143.0,455.9410372]
[1727126281393,29.30741386,143.02,143.0,455.9410372]
[1727126281591,5.8532514,143.01,143.0,455.9410372]
[1727126281794,11.43786352,143.01,143.0,455.9410372]
[1727126281984,20.7061808,143.01,143.0,455.9410372]
[1727126282680,18.4984808,143.01,143.0,455.9410372]
[1727126282886,16.2906808,143.01,143.0,455.9410372]
[1727126283486,5.48662894,143.03,143.0,482.7910372]
[1727126283693,1.95692894,143.03,143.0,455.9410372]
[1727126285194,26.85,143.1,143.0,455.9410372]
[1727126285400,26.85,143.07,143.0,455.9410372]
[1727126286187,26.85,143.05,143.0,455.9410372]
[1727126286388,26.85,143.04,143.0,455.9410372]
[1727126286786,3.496,143.01,143.0,451.5270372]
[1727126287093,26.85,143.02,143.0,451.5270372]
[1727126287390,3.496,143.01,143.0,451.5270372]
[1727126288090,26.85,143.02,143.0,451.5270372]
[1727126288288,3.4957,143.03,143.0,450.79947938]
[1727126288488,26.85,143.04,143.0,450.79947938]
[1727126288690,26.85,143.02,143.0,338.72947938]
[1727126288893,26.85,143.02,143.0,336.52207938]
[1727126289083,26.85,143.02,143.0,334.31467938]
[1727126289284,3.496,143.01,143.0,301.25307938]
[1727126289493,26.85,143.04,143.0,191.76317938]
[1727126289793,26.85,143.06,143.0,191.76317938]
[1727126290096,26.85,143.06,143.0,191.03461371]
[1727126290295,26.85,143.04,143.0,191.03461371]
[1727126290788,26.85,143.06,143.0,191.03461371]
[1727126292400,26.85,143.02,143.0,191.03461371]
[1727126292592,26.85,143.06,143.0,191.03461371]
[1727126292786,26.85,143.04,143.0,191.03461371]
[1727126293884,3.4958,143.02,143.0,191.03461371]
[1727126294088,26.85,143.04,143.0,191.03461371]
[1727126294288,30.3455,143.04,143.0,191.03461371]
[1727126294785,26.85,143.04,143.0,191.03461371]
[1727126295392,3.496,143.01,143.0,191.03461371]
[1727126295587,83.82,143.08,143.0,190.79114342]
[1727126295790,26.85,143.08,143.0,190.79114342]
[1727126296394,3.496,143.01,143.0,190.79114342]
[1727126296599,26.85,143.05,143.0,190.79114342]
[1727126298402,26.85,143.05,143.0,190.13634139]
[1727126298703,3.496,143.02,143.0,190.13634139]
[1727126298901,26.85,143.05,143.0,190.13634139]
[1727126299534,3.496,143.02,143.0,190.13634139]
[1727126299901,3.496,143.02,143.0,189.48063229]
[1727126300295,3.4956,143.03,143.0,189.48063229]
[1727126301006,26.85,143.05,143.0,189.48063229]
[1727126301597,3.496,143.02,143.0,189.48063229]
[1727126301804,26.85,143.1,143.0,189.48063229]
[1727126302502,16.78,143.07,143.0,189.48063229]
[1727126303404,83.94,143.18,143.0,189.48063229]
[1727126303709,16.78,143.08,143.0,189.48063229]
[1727126304292,26.86,143.09,143.0,189.48063229]
[1727126304907,26.86,143.09,143.0,192.97693229]
[1727126305111,26.86,143.09,143.0,189.48063229]
[1727126305407,3.4953,143.05,143.0,189.48063229]
[1727126305800,26.86,143.09,143.0,189.48063229]
[1727126306001,26.86,143.04,143.0,189.48063229]
[1727126307496,3.4959,143.02,143.0,189.48063229]
[1727126307703,26.86,143.04,143.0,189.48063229]
[1727126308301,3.496,143.02,143.0,188.89131046]
[1727126308506,26.86,143.04,143.0,188.89131046]
[1727126309298,3.496,143.01,143.0,188.89131046]
[1727126309900,3.496,143.01,143.0,188.30117227]
[1727126310305,3.4959,143.02,143.0,188.30117227]
[1727126310695,26.86,143.04,143.0,188.30117227]
[1727126310894,3.4957,143.03,143.0,188.30117227]
[1727126311099,26.86,143.04,143.0,188.30117227]
[1727126311605,30.3555,143.04,143.0,188.30117227]
[1727126312104,3.4955,143.03,143.0,188.30117227]
[1727126313311,83.94,143.19,143.0,188.30117227]
[1727126313505,26.86,143.1,143.0,188.30117227]
[1727126313706,30.354,143.1,143.0,188.30117227]
[1727126313906,26.86,143.1,143.0,188.30117227]
[1727126314307,3.4941,143.09,143.03,3.4955]
[1727126314507,3.4941,143.09,143.0,188.30117227]
[1727126314702,26.86,143.1,143.0,188.30117227]
[1727126315707,3.4947,143.07,143.0,188.30117227]
[1727126316213,3.4947,143.07,143.01,3.4958]
[1727126316915,26.86,143.08,143.0,188.30117227]
[1727126317118,26.86,143.06,143.0,188.30117227]
[1727126317710,3.4955,143.04,143.0,188.30117227]
[1727126318109,30.355,143.06,143.0,188.30117227]
[1727126318311,26.86,143.06,143.0,187.77078262]
[1727126318611,30.355,143.06,143.0,191.26688262]
[1727126319120,3.4946,143.07,143.02,3.4956]
[1727126319412,26.86,143.08,143.0,187.77078262]
[1727126319614,26.86,143.15,143.0,187.77078262]
[1727126319615,26.86,143.06,143.0,187.77078262]
[1727126319809,3.4954,143.04,143.0,187.77078262]
[1727126320411,26.86,143.06,143.0,187.77078262]
[1727126320617,26.86,143.03,143.0,187.77078262]
[1727126320914,3.4959,143.02,143.0,187.77078262]
[1727126321116,26.86,143.03,143.0,187.77078262]
[1727126321624,3.496,143.02,143.0,187.77078262]
[1727126322321,26.86,143.03,143.0,187.77078262]
[1727126322820,3.4959,143.02,143.0,187.77078262]
[1727126323215,26.86,143.03,143.0,187.77078262]
[1727126323417,3.496,143.01,143.0,187.77078262]
[1727126324819,3.4959,143.02,143.0,187.77078262]
[1727126325724,3.496,143.01,143.0,187.28383693]
[1727126327825,20.2959,143.02,143.0,187.28383693]
[1727126328123,16.8,143.04,143.0,187.28383693]
[1727126328319,16.8,143.04,143.0,186.80648625]
[1727126328525,3.496,143.02,143.0,186.80648625]
[1727126329030,3.496,143.01,143.0,186.80648625]
[1727126330218,20.296,143.02,143.0,186.80648625]
[1727126330632,16.8,143.02,143.0,186.80648625]
[1727126331127,3.496,143.01,143.0,186.80648625]
[1727126333129,16.8,143.02,143.0,186.80648625]
[1727126333529,16.8,143.02,143.0,190.30278625]
[1727126333930,16.8,143.02,143.0,186.80648625]
[1727126334925,20.2958,143.02,143.0,186.80648625]
[1727126335527,16.8,143.04,143.0,186.80648625]
[1727126335920,6.9875,143.11,143.0,186.80648625]
[1727126336121,16.8,143.06,143.0,186.80648625]
[1727126337832,3.4957,143.03,143.0,186.80648625]
[1727126338235,16.8,143.06,143.0,186.80648625]
[1727126338427,16.8,143.06,143.0,186.37687064]
[1727126339139,3.4959,143.02,143.0,186.37687064]
[1727126339340,16.8,143.03,143.0,186.37687064]
[1727126339730,3.496,143.01,143.0,186.37687064]
[1727126340340,3.4958,143.02,143.0,186.37687064]
[1727126341043,3.496,143.01,143.0,186.37687064]
[1727126345343,3.496,143.01,143.0,91.11687064]
[1727126345654,3.496,143.01,143.0,86.73999449]
[1727126345848,6.94562001,143.01,143.0,86.73999449]
[1727126347240,20.296,143.01,143.0,7.92679449]
[1727126347453,37.096,143.01,143.0,7.92679449]
[1727126347643,40.62843418,143.01,143.0,7.92679449]
[1727126347949,3.4975,142.95,142.94,1.3273]
[1727126348149,20.2975,142.95,142.94,1.3273]
[1727126348450,16.8,142.95,142.88,1.4229]
[1727126348949,20.33243418,143.01,142.88,1.4229]
[1727126349148,3.4971,142.97,142.92,3.4981]
[1727126349355,3.4971,142.97,142.92,4.8364]
[1727126349556,3.4971,142.97,142.92,1.3383]
[1727126349744,16.8,142.99,142.92,1.3383]
[1727126349945,16.8,142.95,142.92,1.3383]
[1727126350253,16.8,143.01,142.92,18.1383]
[1727126350448,16.8,142.99,142.92,1.3383]
[1727126350756,3.4972,142.97,142.93,3.498]
[1727126352156,16.8,142.99,142.92,18.1383]
[1727126353150,16.8,142.99,142.94,3.4976]
[1727126353757,16.8,142.99,142.95,1.4316]
[1727126353958,16.8,142.97,142.95,1.4316]
[1727126354751,20.2972,142.97,142.95,1.4316]
[1727126355054,16.8,142.97,142.92,1.3383]
[1727126356250,16.8,142.96,142.9,1.4316]
[1727126357346,3.4979,142.94,142.9,1.4316]
[1727126357554,16.8,142.96,142.9,1.4316]
[1727126357953,3.4979,142.94,142.9,1.4316]
[1727126358456,16.8,142.96,142.9,1.4316]
[1727126359253,3.4979,142.94,142.9,1.4316]
[1727126359657,16.8,142.96,142.9,4.9303]
[1727126359849,3.4977,142.95,142.9,1.4316]
[1727126360055,16.8,143.0,142.9,18.2316]
[1727126360255,3.4972,142.97,142.92,3.4981]
[1727126360750,3.4973,142.96,142.92,3.4981]
[1727126361852,16.8,142.98,142.91,3.4984]
[1727126362259,3.4976,142.95,142.91,3.4984]
[1727126363364,3.4978,142.94,142.9,4.9302]
[1727126363862,16.8,142.96,142.9,1.4316]
[1727126364262,3.4979,142.94,142.9,1.4316]
[1727126364556,16.8,142.96,142.9,1.4316]
[1727126365260,3.4979,142.94,142.9,1.4316]
[1727126366551,3.498,142.93,142.9,1.4316]
[1727126368366,16.8,142.92,142.74,13.9721]